[Event "Early-Titled-Tuesday-Blitz-October-03-2023"]
[Site "Chess.com"]
[Date "2023.10.03"]
[Round "2"]
[White "twofoxniel"]
[Black "VovenRogel"]
[Result "1/2-1/2"]
[WhiteElo "2602"]
[BlackElo "2849"]
[TimeControl "180+1"]
[EndTime "8:18:32 PDT"]
[Termination "Game drawn by stalemate"]

1. e4 {[%clk 0:03:00.9]} 1... e5 {[%clk 0:02:59.1]} 2. Nf3 {[%clk 0:03:00.7]}
2... Nc6 {[%clk 0:02:59.7]} 3. Nc3 {[%clk 0:03:01.3]} 3... Nf6 {[%clk
0:02:59.3]} 4. d4 {[%clk 0:03:01.8]} 4... exd4 {[%clk 0:02:59.6]} 5. Nxd4 {[%clk
0:03:02.7]} 5... Bb4 {[%clk 0:02:59.8]} 6. Nxc6 {[%clk 0:03:03]} 6... bxc6
{[%clk 0:03:00.3]} 7. Bd3 {[%clk 0:03:03.7]} 7... d5 {[%clk 0:02:59.7]} 8. exd5
{[%clk 0:03:04.6]} 8... O-O {[%clk 0:03:00]} 9. O-O {[%clk 0:03:05.3]} 9... Bg4
{[%clk 0:02:58.3]} 10. f3 {[%clk 0:02:51.5]} 10... Bh5 {[%clk 0:02:58.8]} 11.
Bd2 {[%clk 0:02:46.1]} 11... cxd5 {[%clk 0:02:55.7]} 12. Kh1 {[%clk 0:02:45.7]}
12... c5 {[%clk 0:02:53.3]} 13. b3 {[%clk 0:02:38.5]} 13... Bg6 {[%clk
0:02:42.4]} 14. Bxg6 {[%clk 0:02:36.7]} 14... hxg6 {[%clk 0:02:43.3]} 15. a3
{[%clk 0:02:36.9]} 15... Ba5 {[%clk 0:02:37.5]} 16. Na4 {[%clk 0:02:37.1]} 16...
Bb6 {[%clk 0:02:24.3]} 17. Bf4 {[%clk 0:02:34.7]} 17... Qd7 {[%clk 0:02:20.1]}
18. Qd3 {[%clk 0:02:28]} 18... Rfe8 {[%clk 0:02:17]} 19. Rad1 {[%clk 0:02:27]}
19... Nh5 {[%clk 0:02:09.5]} 20. Be3 {[%clk 0:02:11]} 20... d4 {[%clk
0:01:48.9]} 21. Bc1 {[%clk 0:01:55.8]} 21... Bc7 {[%clk 0:01:45.4]} 22. Qc4
{[%clk 0:01:46.3]} 22... Qd6 {[%clk 0:01:22.9]} 23. f4 {[%clk 0:01:45.7]} 23...
Bb6 {[%clk 0:01:23.2]} 24. Qd3 {[%clk 0:00:46.5]} 24... f5 {[%clk 0:01:19.3]}
25. Nb2 {[%clk 0:00:45.7]} 25... Bc7 {[%clk 0:01:13.2]} 26. Nc4 {[%clk
0:00:45.9]} 26... Qc6 {[%clk 0:01:06.9]} 27. Qf3 {[%clk 0:00:46]} 27... Re4
{[%clk 0:01:04.6]} 28. g3 {[%clk 0:00:45]} 28... Nf6 {[%clk 0:00:57.2]} 29. Bb2
{[%clk 0:00:45]} 29... Rae8 {[%clk 0:00:53.8]} 30. c3 {[%clk 0:00:44.9]} 30...
dxc3 {[%clk 0:00:44.1]} 31. Bxc3 {[%clk 0:00:45.8]} 31... Ng4 {[%clk 0:00:42.4]}
32. h3 {[%clk 0:00:38.7]} 32... Nf6 {[%clk 0:00:32.9]} 33. Be5 {[%clk
0:00:37.7]} 33... Re6 {[%clk 0:00:24.4]} 34. Bxc7 {[%clk 0:00:37.3]} 34... Qxc7
{[%clk 0:00:25.3]} 35. Rd3 {[%clk 0:00:34.7]} 35... Rd4 {[%clk 0:00:23.4]} 36.
Rxd4 {[%clk 0:00:33.3]} 36... cxd4 {[%clk 0:00:24.3]} 37. Ne5 {[%clk 0:00:33.6]}
37... Ne4 {[%clk 0:00:22.6]} 38. Rd1 {[%clk 0:00:34]} 38... Qc3 {[%clk
0:00:21.2]} 39. Kg2 {[%clk 0:00:31.3]} 39... g5 {[%clk 0:00:19.3]} 40. Qxc3
{[%clk 0:00:29.4]} 40... dxc3 {[%clk 0:00:18.5]} 41. Rd8+ {[%clk 0:00:28.5]}
41... Kh7 {[%clk 0:00:19]} 42. Rc8 {[%clk 0:00:26.3]} 42... gxf4 {[%clk
0:00:19]} 43. gxf4 {[%clk 0:00:27.2]} 43... g5 {[%clk 0:00:19.6]} 44. Nd3 {[%clk
0:00:26.4]} 44... Rd6 {[%clk 0:00:18.9]} 45. Nc5 {[%clk 0:00:25.3]} 45... gxf4
{[%clk 0:00:16.4]} 46. Kf3 {[%clk 0:00:24.9]} 46... Rd4 {[%clk 0:00:04.2]} 47.
Nxe4 {[%clk 0:00:23.3]} 47... fxe4+ {[%clk 0:00:04.1]} 48. Kxf4 {[%clk
0:00:23.8]} 48... Rd3 {[%clk 0:00:04.7]} 49. Kxe4 {[%clk 0:00:23.6]} 49... Rxh3
{[%clk 0:00:04.9]} 50. Kd4 {[%clk 0:00:23.3]} 50... c2 {[%clk 0:00:04.6]} 51.
Rxc2 {[%clk 0:00:23.7]} 51... Rxb3 {[%clk 0:00:05.2]} 52. Rc7+ {[%clk
0:00:24.5]} 52... Kg6 {[%clk 0:00:05.7]} 53. Rxa7 {[%clk 0:00:25.4]} 53... Kf6
{[%clk 0:00:06.3]} 54. Kc4 {[%clk 0:00:25.7]} 54... Rb1 {[%clk 0:00:06.1]} 55.
Rd7 {[%clk 0:00:24.2]} 55... Ke6 {[%clk 0:00:06.3]} 56. Rd3 {[%clk 0:00:22.9]}
56... Rb7 {[%clk 0:00:06.3]} 57. a4 {[%clk 0:00:22.8]} 57... Rd7 {[%clk
0:00:06.8]} 58. Rxd7 {[%clk 0:00:10]} 58... Kxd7 {[%clk 0:00:07.7]} 59. Kc5
{[%clk 0:00:10.8]} 59... Kc7 {[%clk 0:00:08.1]} 60. Kb5 {[%clk 0:00:11.7]} 60...
Kb7 {[%clk 0:00:09]} 61. Ka5 {[%clk 0:00:12.6]} 61... Ka8 {[%clk 0:00:09.6]} 62.
Kb5 {[%clk 0:00:13.5]} 62... Kb8 {[%clk 0:00:10.5]} 63. a5 {[%clk 0:00:14.4]}
63... Ka8 {[%clk 0:00:11.4]} 64. a6 {[%clk 0:00:15.3]} 64... Kb8 {[%clk
0:00:12]} 65. Kb6 {[%clk 0:00:16.2]} 65... Ka8 {[%clk 0:00:12.9]} 66. a7 {[%clk
0:00:17.1]} 1/2-1/2

[Event "Early-Titled-Tuesday-Blitz-October-03-2023"]
[Site "Chess.com"]
[Date "2023.10.03"]
[Round "2"]
[White "Shuvalov"]
[Black "PeshkaCh"]
[Result "0-1"]
[WhiteElo "2450"]
[BlackElo "2797"]
[TimeControl "180+1"]
[EndTime "8:18:33 PDT"]
[Termination "PeshkaCh won on time"]

1. d4 {[%clk 0:02:56.9]} 1... Nf6 {[%clk 0:02:59.7]} 2. c4 {[%clk 0:02:56.7]}
2... c5 {[%clk 0:03:00.2]} 3. Nf3 {[%clk 0:02:56]} 3... g6 {[%clk 0:02:57.7]} 4.
Nc3 {[%clk 0:02:55.8]} 4... cxd4 {[%clk 0:02:56]} 5. Nxd4 {[%clk 0:02:55.8]}
5... Bg7 {[%clk 0:02:56.7]} 6. g3 {[%clk 0:02:56]} 6... Nc6 {[%clk 0:02:56.5]}
7. Bg2 {[%clk 0:02:55.4]} 7... O-O {[%clk 0:02:56.9]} 8. O-O {[%clk 0:02:55.6]}
8... Qa5 {[%clk 0:02:57.1]} 9. Nb3 {[%clk 0:02:53.7]} 9... Qh5 {[%clk
0:02:56.5]} 10. h3 {[%clk 0:02:53.2]} 10... d6 {[%clk 0:02:49.5]} 11. g4 {[%clk
0:02:53.3]} 11... Qe5 {[%clk 0:02:09.5]} 12. Nd5 {[%clk 0:02:22.3]} 12... Nxd5
{[%clk 0:02:06.8]} 13. cxd5 {[%clk 0:02:23.2]} 13... Nd4 {[%clk 0:02:07]} 14. f4
{[%clk 0:01:54.2]} 14... Nxe2+ {[%clk 0:01:41.9]} 15. Kh2 {[%clk 0:01:52.4]}
15... Nxf4 {[%clk 0:01:40.6]} 16. Bxf4 {[%clk 0:01:43.2]} 16... Qxb2 {[%clk
0:01:41]} 17. Rb1 {[%clk 0:01:39]} 17... Qxa2 {[%clk 0:01:38.3]} 18. Nd4 {[%clk
0:01:32.8]} 18... Qc4 {[%clk 0:01:30]} 19. Ne2 {[%clk 0:01:22.9]} 19... b6
{[%clk 0:01:29.4]} 20. Rc1 {[%clk 0:01:19.4]} 20... Qb4 {[%clk 0:01:22.6]} 21.
Qd2 {[%clk 0:01:05.9]} 21... Qxd2 {[%clk 0:01:18.1]} 22. Bxd2 {[%clk 0:01:06.8]}
22... Ba6 {[%clk 0:01:18.8]} 23. Rfe1 {[%clk 0:01:06.5]} 23... Rac8 {[%clk
0:01:17.9]} 24. Rc6 {[%clk 0:01:03.5]} 24... Bb5 {[%clk 0:01:12.1]} 25. Rxc8
{[%clk 0:00:35.5]} 25... Rxc8 {[%clk 0:01:13]} 26. Rc1 {[%clk 0:00:34.1]} 26...
Be5+ {[%clk 0:01:00.1]} 27. Kg1 {[%clk 0:00:31.2]} 27... Rxc1+ {[%clk
0:01:00.2]} 28. Nxc1 {[%clk 0:00:31.4]} 28... a5 {[%clk 0:01:00.1]} 29. Be3
{[%clk 0:00:30.6]} 29... Bb2 {[%clk 0:00:53.1]} 30. Bf1 {[%clk 0:00:24.6]} 30...
Bd7 {[%clk 0:00:34]} 31. Na2 {[%clk 0:00:20.2]} 31... b5 {[%clk 0:00:30]} 32.
Bb6 {[%clk 0:00:19.2]} 32... b4 {[%clk 0:00:19.9]} 33. Bxa5 {[%clk 0:00:17.3]}
33... Bd4+ {[%clk 0:00:20.2]} 34. Kg2 {[%clk 0:00:17]} 34... b3 {[%clk
0:00:20.9]} 35. Nc3 {[%clk 0:00:15.7]} 35... b2 {[%clk 0:00:20.1]} 36. Nb1
{[%clk 0:00:12]} 36... Ba4 {[%clk 0:00:20.7]} 37. Bd3 {[%clk 0:00:12]} 37... Bb3
{[%clk 0:00:21.4]} 38. Bc3 {[%clk 0:00:11.3]} 38... Bxd5+ {[%clk 0:00:17.9]} 39.
Kf1 {[%clk 0:00:10.3]} 39... Bxc3 {[%clk 0:00:13.9]} 40. Nxc3 {[%clk 0:00:11.2]}
40... Bb3 {[%clk 0:00:14.8]} 41. Bb1 {[%clk 0:00:10.2]} 41... Kg7 {[%clk
0:00:13.4]} 42. Ke2 {[%clk 0:00:10.2]} 42... Kf6 {[%clk 0:00:13.8]} 43. Ne4+
{[%clk 0:00:09.8]} 43... Ke5 {[%clk 0:00:14.2]} 44. Ng5 {[%clk 0:00:09.9]} 44...
h6 {[%clk 0:00:13.5]} 45. Nf3+ {[%clk 0:00:08.7]} 45... Kf4 {[%clk 0:00:13.5]}
46. Nd4 {[%clk 0:00:08.5]} 46... Bd5 {[%clk 0:00:10.7]} 47. Kf2 {[%clk
0:00:08.7]} 47... Be4 {[%clk 0:00:09.6]} 48. Ne2+ {[%clk 0:00:08]} 48... Ke5
{[%clk 0:00:09.7]} 49. Nc3 {[%clk 0:00:06.2]} 49... Bxb1 {[%clk 0:00:07.8]} 50.
Nxb1 {[%clk 0:00:07.1]} 50... Kd4 {[%clk 0:00:06.5]} 51. Ke2 {[%clk 0:00:07.4]}
51... e5 {[%clk 0:00:06]} 52. Kd2 {[%clk 0:00:06.2]} 52... Ke4 {[%clk
0:00:05.5]} 53. Ke2 {[%clk 0:00:06.4]} 53... d5 {[%clk 0:00:05.3]} 54. Nd2+
{[%clk 0:00:06.8]} 54... Kf4 {[%clk 0:00:04.9]} 55. Kf2 {[%clk 0:00:04.5]} 55...
e4 {[%clk 0:00:05.4]} 56. Nb1 {[%clk 0:00:04.2]} 56... d4 {[%clk 0:00:06.1]} 57.
Ke2 {[%clk 0:00:03.4]} 57... Kg3 {[%clk 0:00:06.1]} 58. Kd2 {[%clk 0:00:01.6]}
58... Kxh3 {[%clk 0:00:06.5]} 59. Kc2 {[%clk 0:00:02.1]} 59... e3 {[%clk
0:00:06.7]} 60. Kxb2 {[%clk 0:00:02]} 60... e2 {[%clk 0:00:07.2]} 61. Nd2 {[%clk
0:00:01.7]} 61... e1=Q {[%clk 0:00:07.2]} 62. Nb3 {[%clk 0:00:01.7]} 62... Qc3+
{[%clk 0:00:07.4]} 63. Ka2 {[%clk 0:00:02.1]} 63... Kxg4 {[%clk 0:00:07.1]} 0-1

[Event "Early-Titled-Tuesday-Blitz-October-03-2023"]
[Site "Chess.com"]
[Date "2023.10.03"]
[Round "2"]
[White "themind1hunter"]
[Black "Abund"]
[Result "1/2-1/2"]
[WhiteElo "2549"]
[BlackElo "2773"]
[TimeControl "180+1"]
[EndTime "8:18:35 PDT"]
[Termination "Game drawn by agreement"]

1. e4 {[%clk 0:02:53.2]} 1... e5 {[%clk 0:02:59.3]} 2. Nf3 {[%clk 0:02:51.7]}
2... Nc6 {[%clk 0:03:00]} 3. Bb5 {[%clk 0:02:49.4]} 3... Nf6 {[%clk 0:03:00.2]}
4. O-O {[%clk 0:02:46.5]} 4... Nxe4 {[%clk 0:03:00.5]} 5. d4 {[%clk 0:02:46.9]}
5... Nd6 {[%clk 0:03:01.1]} 6. dxe5 {[%clk 0:02:46.7]} 6... Nxb5 {[%clk
0:03:01.3]} 7. a4 {[%clk 0:02:47.4]} 7... Nbd4 {[%clk 0:02:58.3]} 8. Nxd4 {[%clk
0:02:47.9]} 8... d5 {[%clk 0:02:55.7]} 9. exd6 {[%clk 0:02:40.2]} 9... Bxd6
{[%clk 0:02:47.5]} 10. Re1+ {[%clk 0:02:32.2]} 10... Be7 {[%clk 0:02:42.3]} 11.
Nxc6 {[%clk 0:02:29.5]} 11... Qxd1 {[%clk 0:02:40.3]} 12. Rxd1 {[%clk
0:02:30.4]} 12... bxc6 {[%clk 0:02:40.9]} 13. Bf4 {[%clk 0:02:29.8]} 13... Bf6
{[%clk 0:02:23.6]} 14. Nc3 {[%clk 0:02:01]} 14... O-O {[%clk 0:02:17.8]} 15.
Bxc7 {[%clk 0:01:59.3]} 15... Bf5 {[%clk 0:02:10.5]} 16. Rd2 {[%clk 0:01:58]}
16... Rfe8 {[%clk 0:02:07.2]} 17. Rad1 {[%clk 0:01:46.5]} 17... h5 {[%clk
0:02:06.7]} 18. h3 {[%clk 0:01:45]} 18... Re7 {[%clk 0:02:02.5]} 19. Bd8 {[%clk
0:01:39.2]} 19... Bxc3 {[%clk 0:01:56.5]} 20. Bxe7 {[%clk 0:01:33.3]} 20... Bxd2
{[%clk 0:01:56.3]} 21. Rxd2 {[%clk 0:01:34.2]} 21... Re8 {[%clk 0:01:50]} 22.
Bc5 {[%clk 0:01:29]} 22... a6 {[%clk 0:01:48.1]} 23. b4 {[%clk 0:01:25]} 23...
Re1+ {[%clk 0:01:37.9]} 24. Kh2 {[%clk 0:01:24.5]} 24... Rc1 {[%clk 0:01:38.4]}
25. Rd8+ {[%clk 0:00:35.1]} 25... Kh7 {[%clk 0:01:38.3]} 26. Ra8 {[%clk
0:00:31.9]} 26... Bxc2 {[%clk 0:01:10.5]} 27. Rxa6 {[%clk 0:00:31.6]} 27... Ra1
{[%clk 0:01:09.6]} 28. a5 {[%clk 0:00:31.1]} 28... Ba4 {[%clk 0:01:08.7]} 29.
Ra7 {[%clk 0:00:29]} 29... Kg6 {[%clk 0:01:06]} 30. h4 {[%clk 0:00:25.4]} 30...
Bb5 {[%clk 0:01:05.6]} 31. Re7 {[%clk 0:00:17.4]} 31... Ra3 {[%clk 0:01:01.1]}
32. Re5 {[%clk 0:00:13.4]} 32... Bd3 {[%clk 0:00:39.2]} 33. Rg5+ {[%clk
0:00:12.8]} 33... Kh6 {[%clk 0:00:39.5]} 34. Bf8 {[%clk 0:00:11.8]} 34... Bg6
{[%clk 0:00:39.1]} 35. Rc5 {[%clk 0:00:11.5]} 35... Be4 {[%clk 0:00:38.9]} 36.
f3 {[%clk 0:00:09.4]} 36... Bd5 {[%clk 0:00:35.6]} 37. b5 {[%clk 0:00:09.8]}
37... Rxa5 {[%clk 0:00:35.3]} 38. bxc6 {[%clk 0:00:02.9]} 38... Rxc5 {[%clk
0:00:34.9]} 39. Bxc5 {[%clk 0:00:03.8]} 39... Bxc6 {[%clk 0:00:35.7]} 40. Be3+
{[%clk 0:00:03.5]} 40... Kg6 {[%clk 0:00:36.3]} 41. Kg3 {[%clk 0:00:04.1]} 41...
Kf5 {[%clk 0:00:36.9]} 42. Bd4 {[%clk 0:00:04.1]} 42... f6 {[%clk 0:00:35.7]}
43. Kf2 {[%clk 0:00:04.7]} 43... Bb5 {[%clk 0:00:36]} 44. g3 {[%clk 0:00:04.6]}
44... Bc6 {[%clk 0:00:36.1]} 45. Ke3 {[%clk 0:00:05.2]} 45... Bb7 {[%clk
0:00:36.3]} 46. Bc5 {[%clk 0:00:05.6]} 46... Ba6 {[%clk 0:00:36]} 47. Bf8 {[%clk
0:00:05.7]} 47... g5 {[%clk 0:00:35.4]} 48. hxg5 {[%clk 0:00:05.6]} 48... fxg5
{[%clk 0:00:35.9]} 49. Be7 {[%clk 0:00:06.3]} 49... Bb7 {[%clk 0:00:36]} 50. f4
{[%clk 0:00:05.4]} 50... h4 {[%clk 0:00:29.1]} 51. gxh4 {[%clk 0:00:04.5]} 51...
gxf4+ {[%clk 0:00:28.2]} 52. Kf2 {[%clk 0:00:05.1]} 52... Kg4 {[%clk 0:00:28.7]}
53. Bd6 {[%clk 0:00:05]} 53... f3 {[%clk 0:00:28.8]} 54. Bg3 {[%clk 0:00:05.1]}
54... Bc6 {[%clk 0:00:28.9]} 55. Bd6 {[%clk 0:00:04.1]} 55... Kxh4 {[%clk
0:00:29.3]} 56. Bc5 {[%clk 0:00:04.8]} 56... Kg4 {[%clk 0:00:30]} 57. Bb6 {[%clk
0:00:05.5]} 57... Kf4 {[%clk 0:00:30.7]} 58. Bc5 {[%clk 0:00:06.2]} 58... Ke4
{[%clk 0:00:31.5]} 59. Ba7 {[%clk 0:00:07]} 59... Ke5 {[%clk 0:00:31.8]} 60.
Bb8+ {[%clk 0:00:07.6]} 60... Ke6 {[%clk 0:00:32.3]} 61. Ba7 {[%clk 0:00:08.5]}
61... Kd7 {[%clk 0:00:33.1]} 62. Be3 {[%clk 0:00:09]} 62... Bd5 {[%clk 0:00:34]}
63. Bf4 {[%clk 0:00:09.5]} 63... Kc6 {[%clk 0:00:34.9]} 64. Bg3 {[%clk
0:00:10.1]} 64... Kb5 {[%clk 0:00:35.7]} 65. Bh4 {[%clk 0:00:10.9]} 65... Kc4
{[%clk 0:00:36.6]} 66. Bg5 {[%clk 0:00:11.5]} 66... Kd3 {[%clk 0:00:37.5]} 67.
Bh6 {[%clk 0:00:12.3]} 67... Ke4 {[%clk 0:00:38.4]} 68. Bg7 {[%clk 0:00:13]}
68... Bb7 {[%clk 0:00:39.3]} 69. Bf8 {[%clk 0:00:13.5]} 69... Ba8 {[%clk
0:00:40.2]} 70. Bg7 {[%clk 0:00:14.1]} 70... Kf5 {[%clk 0:00:41.1]} 71. Bh8
{[%clk 0:00:14.8]} 71... Kg6 {[%clk 0:00:42]} 72. Ba1 {[%clk 0:00:15.1]} 72...
Kg5 {[%clk 0:00:42.3]} 73. Bb2 {[%clk 0:00:15.7]} 73... Kg4 {[%clk 0:00:43.2]}
74. Bc1 {[%clk 0:00:16.4]} 74... Kf5 {[%clk 0:00:44.1]} 75. Bd2 {[%clk 0:00:17]}
75... Ke4 {[%clk 0:00:45]} 76. Be1 {[%clk 0:00:17.4]} 76... Kd3 {[%clk
0:00:45.7]} 77. Ba5 {[%clk 0:00:17.9]} 77... Kc4 {[%clk 0:00:46]} 78. Bd8 {[%clk
0:00:18.8]} 78... Kd5 {[%clk 0:00:46.5]} 79. Bh4 {[%clk 0:00:19.7]} 79... Ke6
{[%clk 0:00:47.1]} 80. Bg3 {[%clk 0:00:20]} 80... Kf5 {[%clk 0:00:47.8]} 81. Bb8
{[%clk 0:00:20.5]} 81... Bc6 {[%clk 0:00:48.7]} 82. Ba7 {[%clk 0:00:20.9]} 82...
Ke6 {[%clk 0:00:49]} 83. Be3 {[%clk 0:00:21.4]} 83... Kf5 {[%clk 0:00:49.3]} 84.
Ba7 {[%clk 0:00:19.7]} 84... Kg4 {[%clk 0:00:49.5]} 85. Bb8 {[%clk 0:00:19.3]}
85... Kf5 {[%clk 0:00:48.8]} 86. Bc7 {[%clk 0:00:20]} 1/2-1/2

[Event "Early-Titled-Tuesday-Blitz-October-03-2023"]
[Site "Chess.com"]
[Date "2023.10.03"]
[Round "2"]
[White "sonicdravise"]
[Black "Boxerandchessplayer"]
[Result "1-0"]
[WhiteElo "2663"]
[BlackElo "2163"]
[TimeControl "180+1"]
[EndTime "8:18:39 PDT"]
[Termination "sonicdravise won by resignation"]

1. d4 {[%clk 0:03:00.9]} 1... e6 {[%clk 0:03:00.9]} 2. c4 {[%clk 0:03:00.8]}
2... d5 {[%clk 0:03:00.6]} 3. Nc3 {[%clk 0:02:59.7]} 3... h6 {[%clk 0:02:59.7]}
4. cxd5 {[%clk 0:02:53]} 4... exd5 {[%clk 0:03:00.6]} 5. Bf4 {[%clk 0:02:53.3]}
5... Nf6 {[%clk 0:02:59.3]} 6. e3 {[%clk 0:02:53.4]} 6... Bd6 {[%clk 0:02:59.8]}
7. Bg3 {[%clk 0:02:49]} 7... O-O {[%clk 0:02:59.3]} 8. Bd3 {[%clk 0:02:49]} 8...
b6 {[%clk 0:02:58.2]} 9. Nf3 {[%clk 0:02:42.1]} 9... Bxg3 {[%clk 0:02:33.6]} 10.
hxg3 {[%clk 0:02:43]} 10... Bg4 {[%clk 0:02:30.9]} 11. Qc2 {[%clk 0:02:35.7]}
11... c5 {[%clk 0:02:27.2]} 12. Ne5 {[%clk 0:02:23]} 12... cxd4 {[%clk
0:02:18.2]} 13. exd4 {[%clk 0:02:21.3]} 13... Re8 {[%clk 0:02:09.7]} 14. f3
{[%clk 0:02:15.4]} 14... Nc6 {[%clk 0:01:48]} 15. O-O-O {[%clk 0:01:29.6]} 15...
Nxd4 {[%clk 0:01:46.4]} 16. Bh7+ {[%clk 0:01:29.4]} 16... Nxh7 {[%clk
0:01:46.7]} 17. Rxd4 {[%clk 0:01:29.1]} 17... Rxe5 {[%clk 0:01:45.4]} 18. Rxg4
{[%clk 0:01:28.8]} 18... Rg5 {[%clk 0:01:38.1]} 19. Rd4 {[%clk 0:01:16]} 19...
Rxg3 {[%clk 0:01:27.5]} 20. Rxd5 {[%clk 0:01:14.1]} 20... Qe8 {[%clk 0:00:59.9]}
21. Kb1 {[%clk 0:01:08.6]} 21... Nf6 {[%clk 0:00:52.2]} 22. Rd2 {[%clk 0:01:09]}
22... Rg5 {[%clk 0:00:49]} 23. Rhd1 {[%clk 0:01:04.5]} 23... Rc8 {[%clk
0:00:47.3]} 24. Qb3 {[%clk 0:01:03.6]} 24... Re5 {[%clk 0:00:40.7]} 25. Nb5
{[%clk 0:00:57.6]} 25... Qe7 {[%clk 0:00:21.6]} 26. Nd6 {[%clk 0:00:49.8]} 26...
Rc7 {[%clk 0:00:21.7]} 27. Nc4 {[%clk 0:00:41.2]} 27... Re1 {[%clk 0:00:20.3]}
28. Rxe1 {[%clk 0:00:26.3]} 28... Qxe1+ {[%clk 0:00:18.1]} 29. Rd1 {[%clk
0:00:26.9]} 29... Qe6 {[%clk 0:00:17.9]} 30. Rd8+ {[%clk 0:00:16.1]} 30... Kh7
{[%clk 0:00:18.1]} 31. Qd3+ {[%clk 0:00:15.6]} 31... g6 {[%clk 0:00:17.8]} 32.
b3 {[%clk 0:00:12.6]} 32... Qe1+ {[%clk 0:00:17.3]} 33. Kb2 {[%clk 0:00:13]}
33... Qf2+ {[%clk 0:00:16]} 34. Ka3 {[%clk 0:00:11.4]} 34... Qc5+ {[%clk
0:00:15.5]} 35. Kb2 {[%clk 0:00:11.4]} 35... Qf2+ {[%clk 0:00:15.3]} 36. Ka3
{[%clk 0:00:11.2]} 36... b5 {[%clk 0:00:15.4]} 37. Qd6 {[%clk 0:00:07.4]} 37...
Qc5+ {[%clk 0:00:13.1]} 38. Qxc5 {[%clk 0:00:06.4]} 38... Rxc5 {[%clk 0:00:14]}
39. Nd6 {[%clk 0:00:06.7]} 39... Kg7 {[%clk 0:00:08.1]} 40. Rb8 {[%clk
0:00:07.2]} 40... a6 {[%clk 0:00:07.8]} 41. Rb7 {[%clk 0:00:07.4]} 41... Rc2
{[%clk 0:00:03.6]} 42. Rxf7+ {[%clk 0:00:07.8]} 42... Kg8 {[%clk 0:00:03.9]} 43.
Rxf6 {[%clk 0:00:08.4]} 43... Rxg2 {[%clk 0:00:04.6]} 44. Ne4 {[%clk 0:00:08.1]}
44... h5 {[%clk 0:00:04.7]} 45. Rxa6 {[%clk 0:00:07.6]} 45... h4 {[%clk
0:00:04.9]} 46. Ra8+ {[%clk 0:00:05.8]} 46... Kg7 {[%clk 0:00:04.9]} 47. Ra7+
{[%clk 0:00:06.3]} 47... Kg8 {[%clk 0:00:04.3]} 48. Ra5 {[%clk 0:00:05]} 48...
h3 {[%clk 0:00:03.9]} 49. Ra8+ {[%clk 0:00:04.8]} 49... Kf7 {[%clk 0:00:03.1]}
50. Ra7+ {[%clk 0:00:05.3]} 50... Kf8 {[%clk 0:00:02.3]} 51. Ra8+ {[%clk
0:00:04.5]} 51... Kf7 {[%clk 0:00:02.6]} 52. Rh8 {[%clk 0:00:04.5]} 52... Kg7
{[%clk 0:00:02.8]} 53. Rxh3 {[%clk 0:00:03.9]} 53... g5 {[%clk 0:00:02.8]} 54.
Rh5 {[%clk 0:00:03.5]} 54... Kg6 {[%clk 0:00:03.2]} 55. Rxg5+ {[%clk 0:00:04.3]}
55... Rxg5 {[%clk 0:00:02.6]} 56. Nxg5 {[%clk 0:00:05.2]} 56... Kxg5 {[%clk
0:00:03.5]} 57. Kb4 {[%clk 0:00:06.1]} 57... Kf4 {[%clk 0:00:04.4]} 58. Kxb5
{[%clk 0:00:07]} 58... Kxf3 {[%clk 0:00:05.3]} 59. a4 {[%clk 0:00:07.9]} 59...
Ke4 {[%clk 0:00:06.2]} 60. a5 {[%clk 0:00:08.8]} 60... Kd5 {[%clk 0:00:07.1]}
61. a6 {[%clk 0:00:09.7]} 61... Kd6 {[%clk 0:00:08]} 62. Kb6 {[%clk 0:00:10.4]}
1-0